[Event "Live Chess"]
[Site "Chess.com"]
[Date "2024.06.02"]
[Round "-"]
[White "JohanKjeldahl"]
[Black "Eva3337"]
[Result "0-1"]
[WhiteElo "1828"]
[BlackElo "1181"]
[TimeControl "300"]
[EndTime "1:29:15 PDT"]
[Termination "Eva3337 won by checkmate"]

1. e4 {[%clk 0:04:57.5]} 1... Nc6 {[%clk 0:04:57.8]} 2. d4 {[%clk 0:04:55.4]}
2... d6 {[%clk 0:04:56.4]} 3. Nc3 {[%clk 0:04:52.5]} 3... a6 {[%clk 0:04:54.5]}
4. Nf3 {[%clk 0:04:50.8]} 4... g6 {[%clk 0:04:48.3]} 5. Bc4 {[%clk 0:04:48.9]}
5... e6 {[%clk 0:04:36]} 6. O-O {[%clk 0:04:46.6]} 6... Bg7 {[%clk 0:04:34.2]}
7. Be3 {[%clk 0:04:44.8]} 7... Nf6 {[%clk 0:04:32.6]} 8. Qd2 {[%clk 0:04:41.7]}
8... O-O {[%clk 0:04:15.4]} 9. Rad1 {[%clk 0:04:35.1]} 9... Ng4 {[%clk
0:04:10.4]} 10. Bg5 {[%clk 0:04:28.5]} 10... f6 {[%clk 0:03:56.6]} 11. Bh4
{[%clk 0:04:26]} 11... Qe8 {[%clk 0:03:34.6]} 12. h3 {[%clk 0:04:23.8]} 12...
Nh6 {[%clk 0:03:30.4]} 13. d5 {[%clk 0:04:17.8]} 13... Ne5 {[%clk 0:03:22.6]}
14. Nxe5 {[%clk 0:04:13.8]} 14... fxe5 {[%clk 0:03:18.6]} 15. dxe6 {[%clk
0:04:11.3]} 15... Bxe6 {[%clk 0:03:16.1]} 16. Bxe6+ {[%clk 0:04:07.2]} 16...
Qxe6 {[%clk 0:03:14.8]} 17. Nd5 {[%clk 0:04:05.9]} 17... Qd7 {[%clk 0:02:54.3]}
18. c4 {[%clk 0:03:59.8]} 18... Rad8 {[%clk 0:02:50.5]} 19. Bxd8 {[%clk
0:03:55.3]} 19... Qxd8 {[%clk 0:02:40]} 20. Qb4 {[%clk 0:03:51.5]} 20... b6
{[%clk 0:02:35.8]} 21. Ne3 {[%clk 0:03:36.4]} 21... Nf7 {[%clk 0:02:33.8]} 22.
Qa4 {[%clk 0:03:29.9]} 22... a5 {[%clk 0:02:29.3]} 23. a3 {[%clk 0:03:26.7]}
23... Ng5 {[%clk 0:02:27.6]} 24. Qc6 {[%clk 0:03:20.3]} 24... Bh6 {[%clk
0:02:12.6]} 25. Nd5 {[%clk 0:03:09.9]} 25... Ne6 {[%clk 0:02:09.5]} 26. Nc3
{[%clk 0:02:58.6]} 26... Rf7 {[%clk 0:02:07.3]} 27. Qd5 {[%clk 0:02:57]} 27...
Nf4 {[%clk 0:01:56]} 28. Qb5 {[%clk 0:02:45.3]} 28... Qg5 {[%clk 0:01:48.1]} 29.
g3 {[%clk 0:02:42.7]} 29... Nxh3+ {[%clk 0:01:45.6]} 30. Kg2 {[%clk 0:02:41.8]}
30... Nf4+ {[%clk 0:01:40.9]} 31. Kg1 {[%clk 0:02:35.8]} 31... Nh3+ {[%clk
0:01:38.3]} 32. Kh2 {[%clk 0:02:32.7]} 32... Nxf2 {[%clk 0:01:05.2]} 33. Qe8+
{[%clk 0:02:30.2]} 33... Bf8 {[%clk 0:00:51.3]} 34. Kg2 {[%clk 0:02:23.6]} 34...
Qf6 {[%clk 0:00:19.4]} 35. Nd5 {[%clk 0:02:21.2]} 35... Qf3+ {[%clk 0:00:15.6]}
36. Kg1 {[%clk 0:02:17.3]} 36... Qxg3# {[%clk 0:00:13.1]} 0-1

[Event "Live Chess"]
[Site "Chess.com"]
[Date "2024.06.02"]
[Round "-"]
[White "KeithArkell"]
[Black "GoldsmanB"]
[Result "1-0"]
[WhiteElo "2392"]
[BlackElo "1102"]
[TimeControl "300"]
[EndTime "1:29:36 PDT"]
[Termination "KeithArkell won by checkmate"]

1. d4 {[%clk 0:04:57.4]} 1... Nf6 {[%clk 0:04:58.2]} 2. Nf3 {[%clk 0:04:56.7]}
2... e6 {[%clk 0:04:56.3]} 3. c4 {[%clk 0:04:56.1]} 3... Bb4+ {[%clk 0:04:49.5]}
4. Bd2 {[%clk 0:04:55.5]} 4... Bxd2+ {[%clk 0:04:47.9]} 5. Qxd2 {[%clk
0:04:55.1]} 5... O-O {[%clk 0:04:47.2]} 6. Nc3 {[%clk 0:04:54.8]} 6... d5 {[%clk
0:04:45.7]} 7. cxd5 {[%clk 0:04:53.5]} 7... exd5 {[%clk 0:04:42.5]} 8. e3 {[%clk
0:04:53.1]} 8... c6 {[%clk 0:04:41.2]} 9. Qc2 {[%clk 0:04:52.4]} 9... Be6 {[%clk
0:04:39.7]} 10. Bd3 {[%clk 0:04:51.7]} 10... Nbd7 {[%clk 0:04:38.3]} 11. Ng5
{[%clk 0:04:50.9]} 11... g6 {[%clk 0:04:35]} 12. Nxe6 {[%clk 0:04:49.2]} 12...
fxe6 {[%clk 0:04:33.5]} 13. O-O {[%clk 0:04:48.1]} 13... Qc7 {[%clk 0:04:29]}
14. h3 {[%clk 0:04:46.4]} 14... Rf7 {[%clk 0:04:09.3]} 15. e4 {[%clk 0:04:44.7]}
15... dxe4 {[%clk 0:04:07]} 16. Nxe4 {[%clk 0:04:43.9]} 16... Nxe4 {[%clk
0:04:05.7]} 17. Bxe4 {[%clk 0:04:43.7]} 17... Nf6 {[%clk 0:04:03.4]} 18. Bf3
{[%clk 0:04:42.7]} 18... Rd8 {[%clk 0:03:59.4]} 19. Rad1 {[%clk 0:04:41.3]}
19... Rfd7 {[%clk 0:03:53.6]} 20. Rfe1 {[%clk 0:04:38.9]} 20... Re8 {[%clk
0:03:41.8]} 21. Qc4 {[%clk 0:04:37.4]} 21... Rd6 {[%clk 0:03:31.1]} 22. Re5
{[%clk 0:04:35.2]} 22... b5 {[%clk 0:03:23.3]} 23. Qb3 {[%clk 0:04:31.7]} 23...
Nd5 {[%clk 0:03:10.6]} 24. Rde1 {[%clk 0:04:26.3]} 24... Qb6 {[%clk 0:03:04.5]}
25. Qd3 {[%clk 0:04:08.1]} 25... Nb4 {[%clk 0:02:58.9]} 26. Qe2 {[%clk 0:04:05]}
26... Nxa2 {[%clk 0:02:52.9]} 27. Bg4 {[%clk 0:04:02.3]} 27... Nb4 {[%clk
0:02:47.6]} 28. Bxe6+ {[%clk 0:04:00.3]} 28... Kg7 {[%clk 0:02:43.3]} 29. Bb3
{[%clk 0:03:58.5]} 29... Rxe5 {[%clk 0:02:37.3]} 30. Qxe5+ {[%clk 0:03:57.7]}
30... Rf6 {[%clk 0:02:34.3]} 31. Qe7+ {[%clk 0:03:56.9]} 31... Rf7 {[%clk
0:02:31.6]} 32. Qxf7+ {[%clk 0:03:55.8]} 32... Kh6 {[%clk 0:02:29.1]} 33. Qf8+
{[%clk 0:03:55.3]} 33... Kg5 {[%clk 0:02:27.9]} 34. Re5+ {[%clk 0:03:54.8]}
34... Kh4 {[%clk 0:02:25.3]} 35. Qf4# {[%clk 0:03:54.1]} 1-0

[Event "Live Chess"]
[Site "Chess.com"]
[Date "2024.06.02"]
[Round "-"]
[White "AlanBstard10"]
[Black "jellhhggffhjjjjjj"]
[Result "1-0"]
[WhiteElo "1203"]
[BlackElo "402"]
[TimeControl "300"]
[EndTime "1:29:37 PDT"]
[Termination "AlanBstard10 won by resignation"]

1. b4 {[%clk 0:04:57.7]} 1... g6 {[%clk 0:04:54.7]} 2. Bb2 {[%clk 0:04:57]} 2...
Bg7 {[%clk 0:04:54.3]} 3. Bxg7 {[%clk 0:04:55.9]} 3... Nf6 {[%clk 0:04:54.2]} 4.
Bxh8 {[%clk 0:04:55.1]} 4... e5 {[%clk 0:04:35.3]} 5. a3 {[%clk 0:04:48.3]} 5...
d6 {[%clk 0:04:34.3]} 6. Nc3 {[%clk 0:04:47]} 6... Be6 {[%clk 0:04:33.1]} 7. e3
{[%clk 0:04:45]} 7... Nc6 {[%clk 0:04:30.7]} 8. b5 {[%clk 0:04:42.4]} 8... Nb4
{[%clk 0:04:27.1]} 9. axb4 {[%clk 0:04:40.9]} 9... Bb3 {[%clk 0:04:24.9]} 10.
cxb3 {[%clk 0:04:38.3]} 10... Qe7 {[%clk 0:04:19.1]} 11. Bxf6 {[%clk 0:04:33.8]}
11... Qxf6 {[%clk 0:04:16.8]} 12. Nd5 {[%clk 0:04:33.4]} 1-0

[Event "Live Chess"]
[Site "Chess.com"]
[Date "2024.06.02"]
[Round "-"]
[White "RockTroll"]
[Black "NottheBishopSacrifice"]
[Result "0-1"]
[WhiteElo "2171"]
[BlackElo "2312"]
[TimeControl "300"]
[EndTime "1:30:13 PDT"]
[Termination "NottheBishopSacrifice won by checkmate"]

1. e4 {[%clk 0:04:58.7]} 1... e5 {[%clk 0:04:58]} 2. Nf3 {[%clk 0:04:57.4]} 2...
Nc6 {[%clk 0:04:57.3]} 3. Nc3 {[%clk 0:04:56.8]} 3... Nf6 {[%clk 0:04:56.1]} 4.
Bb5 {[%clk 0:04:56.4]} 4... Bd6 {[%clk 0:04:54.5]} 5. d3 {[%clk 0:04:53.9]} 5...
O-O {[%clk 0:04:53.5]} 6. g4 {[%clk 0:04:51.7]} 6... a6 {[%clk 0:04:47.4]} 7.
Bc4 {[%clk 0:04:48.9]} 7... Bc5 {[%clk 0:04:46]} 8. Rg1 {[%clk 0:04:43.2]} 8...
d6 {[%clk 0:04:38.9]} 9. Bg5 {[%clk 0:04:37.5]} 9... Be6 {[%clk 0:04:30.9]} 10.
Nd5 {[%clk 0:04:33.4]} 10... Bxd5 {[%clk 0:04:29.5]} 11. Bxd5 {[%clk 0:04:33.2]}
11... Ne7 {[%clk 0:04:26.1]} 12. Bxf6 {[%clk 0:04:30.8]} 12... gxf6 {[%clk
0:04:24.7]} 13. Nh4 {[%clk 0:04:15.3]} 13... c6 {[%clk 0:04:20.6]} 14. Bb3
{[%clk 0:04:11.6]} 14... Ng6 {[%clk 0:04:18.4]} 15. Nf5 {[%clk 0:04:10]} 15...
d5 {[%clk 0:04:15.8]} 16. Qf3 {[%clk 0:04:04.6]} 16... dxe4 {[%clk 0:04:07.8]}
17. Qxe4 {[%clk 0:04:01.6]} 17... Qb6 {[%clk 0:04:01.6]} 18. O-O-O {[%clk
0:03:51.4]} 18... a5 {[%clk 0:03:56.4]} 19. g5 {[%clk 0:03:44.5]} 19... a4
{[%clk 0:03:48.1]} 20. Bc4 {[%clk 0:03:42.7]} 20... a3 {[%clk 0:03:44.2]} 21. b3
{[%clk 0:03:41.9]} 21... Qb4 {[%clk 0:03:41.1]} 22. gxf6 {[%clk 0:03:33.6]}
22... Qc3 {[%clk 0:03:39.4]} 23. Nh6+ {[%clk 0:03:23.4]} 23... Kh8 {[%clk
0:03:36.7]} 24. Nxf7+ {[%clk 0:03:22.5]} 24... Rxf7 {[%clk 0:03:34.8]} 25. Bxf7
{[%clk 0:03:22]} 25... Bb4 {[%clk 0:03:31.3]} 26. Rdf1 {[%clk 0:03:06.8]} 26...
Qa1# {[%clk 0:03:28.1]} 0-1

[Event "Live Chess"]
[Site "Chess.com"]
[Date "2024.06.02"]
[Round "-"]
[White "lateforthesky"]
[Black "stevochess11"]
[Result "0-1"]
[WhiteElo "2085"]
[BlackElo "1709"]
[TimeControl "300"]
[EndTime "1:30:31 PDT"]
[Termination "stevochess11 won by resignation"]

1. e4 {[%clk 0:04:57.6]} 1... c5 {[%clk 0:04:58.7]} 2. Nf3 {[%clk 0:04:56.6]}
2... g6 {[%clk 0:04:57.1]} 3. c3 {[%clk 0:04:53.6]} 3... Nc6 {[%clk 0:04:55.7]}
4. d4 {[%clk 0:04:51.5]} 4... cxd4 {[%clk 0:04:54.7]} 5. Nxd4 {[%clk 0:04:50.4]}
5... Bg7 {[%clk 0:04:52.1]} 6. Bc4 {[%clk 0:04:49.2]} 6... Nf6 {[%clk 0:04:51]}
7. Nxc6 {[%clk 0:04:36.3]} 7... bxc6 {[%clk 0:04:48]} 8. e5 {[%clk 0:04:34.6]}
8... Ne4 {[%clk 0:04:31.9]} 9. Qe2 {[%clk 0:04:30.3]} 9... d5 {[%clk 0:04:28.6]}
10. exd6 {[%clk 0:04:25.1]} 10... Nxd6 {[%clk 0:04:26.2]} 11. Bb3 {[%clk
0:04:09.6]} 11... O-O {[%clk 0:04:24]} 12. O-O {[%clk 0:04:08.3]} 12... a5
{[%clk 0:04:19]} 13. Re1 {[%clk 0:03:59]} 13... Nf5 {[%clk 0:04:15.3]} 14. Bg5
{[%clk 0:03:48.7]} 14... Ba6 {[%clk 0:03:59.5]} 15. Qe4 {[%clk 0:03:34.4]} 15...
Re8 {[%clk 0:03:50.5]} 16. Bc4 {[%clk 0:03:23.1]} 16... Nd6 {[%clk 0:03:45.2]}
17. Bxe7 {[%clk 0:03:09.1]} 17... Nxe4 {[%clk 0:03:38.5]} 18. Bxd8 {[%clk
0:03:07.3]} 18... Bxc4 {[%clk 0:03:33.4]} 19. Bc7 {[%clk 0:02:52]} 19... Bd3
{[%clk 0:03:21.3]} 20. Na3 {[%clk 0:02:46.4]} 20... Rac8 {[%clk 0:03:01.1]} 21.
Bxa5 {[%clk 0:02:42.1]} 21... Rb8 {[%clk 0:02:56.8]} 22. Rad1 {[%clk 0:02:33.8]}
22... Rxb2 {[%clk 0:02:21.3]} 23. Rxd3 {[%clk 0:02:29.2]} 23... Rxa2 {[%clk
0:02:08.3]} 24. Bb4 {[%clk 0:02:23.6]} 24... f5 {[%clk 0:02:02.3]} 25. f3 {[%clk
0:02:19.1]} 25... Nf6 {[%clk 0:02:00]} 26. Rxe8+ {[%clk 0:02:15.6]} 26... Nxe8
{[%clk 0:01:59.1]} 27. Nc4 {[%clk 0:02:08.6]} 27... Ra1+ {[%clk 0:01:41.6]} 28.
Kf2 {[%clk 0:02:06.5]} 28... Bf6 {[%clk 0:01:35.2]} 29. Na5 {[%clk 0:01:54.9]}
29... c5 {[%clk 0:01:29.4]} 30. Bxc5 {[%clk 0:01:41.4]} 30... Ra2+ {[%clk
0:01:23.1]} 31. Ke3 {[%clk 0:01:37.1]} 31... Rxa5 {[%clk 0:01:16.1]} 32. Bd4
{[%clk 0:01:27.7]} 32... Bxd4+ {[%clk 0:01:13]} 33. Kxd4 {[%clk 0:01:26.9]}
33... Kf7 {[%clk 0:01:10.5]} 34. Re3 {[%clk 0:01:24.8]} 34... Nc7 {[%clk
0:01:07]} 35. c4 {[%clk 0:01:21.6]} 35... Ne6+ {[%clk 0:01:03.8]} 0-1

[Event "Live Chess"]
[Site "Chess.com"]
[Date "2024.06.02"]
[Round "-"]
[White "seasidecastle27"]
[Black "Ferrarifan27"]
[Result "0-1"]
[WhiteElo "1961"]
[BlackElo "2148"]
[TimeControl "300"]
[EndTime "1:30:50 PDT"]
[Termination "Ferrarifan27 won by resignation"]

1. d4 {[%clk 0:04:56.7]} 1... Nf6 {[%clk 0:04:58.8]} 2. Nf3 {[%clk 0:04:55.8]}
2... d5 {[%clk 0:04:57.5]} 3. Bf4 {[%clk 0:04:54.9]} 3... Bf5 {[%clk 0:04:54.8]}
4. e3 {[%clk 0:04:53.9]} 4... e6 {[%clk 0:04:51.3]} 5. Bd3 {[%clk 0:04:52.9]}
5... Bxd3 {[%clk 0:04:49.7]} 6. Qxd3 {[%clk 0:04:51.5]} 6... c6 {[%clk
0:04:49.3]} 7. Nbd2 {[%clk 0:04:49.2]} 7... Bd6 {[%clk 0:04:46.7]} 8. Bg3 {[%clk
0:04:47.1]} 8... O-O {[%clk 0:04:44]} 9. e4 {[%clk 0:04:45.9]} 9... dxe4 {[%clk
0:04:42]} 10. Nxe4 {[%clk 0:04:44.6]} 10... Nxe4 {[%clk 0:04:41.2]} 11. Qxe4
{[%clk 0:04:43.3]} 11... Na6 {[%clk 0:04:27.1]} 12. c3 {[%clk 0:04:35.6]} 12...
Re8 {[%clk 0:04:05.3]} 13. Bxd6 {[%clk 0:04:18.3]} 13... Qxd6 {[%clk 0:04:03.8]}
14. Ng5 {[%clk 0:04:17.2]} 14... f5 {[%clk 0:03:59.7]} 15. Qe5 {[%clk
0:04:11.2]} 15... Qxe5+ {[%clk 0:03:56.9]} 16. dxe5 {[%clk 0:04:09.9]} 16... h6
{[%clk 0:03:56.2]} 17. Nf3 {[%clk 0:04:06.1]} 17... Rad8 {[%clk 0:03:53.2]} 18.
Rd1 {[%clk 0:04:03.7]} 18... Rxd1+ {[%clk 0:03:50.5]} 19. Kxd1 {[%clk
0:04:02.4]} 19... Rd8+ {[%clk 0:03:50.1]} 20. Ke2 {[%clk 0:03:59]} 20... Nc5
{[%clk 0:03:48.2]} 21. Rd1 {[%clk 0:03:55.2]} 21... Rxd1 {[%clk 0:03:46]} 22.
Kxd1 {[%clk 0:03:53.9]} 22... Nd3 {[%clk 0:03:42]} 23. Kc2 {[%clk 0:03:35.7]}
23... Nxf2 {[%clk 0:03:40.1]} 24. Nd4 {[%clk 0:03:34]} 24... Kf7 {[%clk
0:03:34.4]} 25. a4 {[%clk 0:03:31.5]} 25... Ng4 {[%clk 0:03:32.7]} 26. Nf3
{[%clk 0:03:26.2]} 26... Ne3+ {[%clk 0:03:31.5]} 27. Kd3 {[%clk 0:03:24.2]}
27... Nxg2 {[%clk 0:03:30.7]} 28. Kc4 {[%clk 0:03:22.6]} 28... g5 {[%clk
0:03:28.1]} 29. Kc5 {[%clk 0:03:20.8]} 29... Ke7 {[%clk 0:03:24.1]} 30. a5
{[%clk 0:03:18.8]} 30... g4 {[%clk 0:03:22.4]} 31. Nd4 {[%clk 0:03:14.5]} 31...
f4 {[%clk 0:03:17.9]} 32. a6 {[%clk 0:03:11.9]} 32... bxa6 {[%clk 0:03:11.5]}
33. Nxc6+ {[%clk 0:03:10.7]} 33... Kd7 {[%clk 0:03:09.4]} 34. Nb8+ {[%clk
0:03:09.1]} 34... Ke7 {[%clk 0:03:05.9]} 35. Nxa6 {[%clk 0:03:06.8]} 35... f3
{[%clk 0:03:04.3]} 36. b4 {[%clk 0:03:03.4]} 36... f2 {[%clk 0:03:03.3]} 37. c4
{[%clk 0:03:02.6]} 37... f1=Q {[%clk 0:03:01.9]} 0-1

[Event "Live Chess"]
[Site "Chess.com"]
[Date "2024.06.02"]
[Round "-"]
[White "chessgoatpawel"]
[Black "MagnersCarlsberg2870"]
[Result "1-0"]
[WhiteElo "2028"]
[BlackElo "1817"]
[TimeControl "300"]
[EndTime "1:31:05 PDT"]
[Termination "chessgoatpawel won by checkmate"]

1. e4 {[%clk 0:04:59]} 1... d6 {[%clk 0:04:57.8]} 2. d4 {[%clk 0:04:57.8]} 2...
Nf6 {[%clk 0:04:56.9]} 3. Nc3 {[%clk 0:04:56]} 3... Nbd7 {[%clk 0:04:56]} 4. Bc4
{[%clk 0:04:44.1]} 4... e5 {[%clk 0:04:54.7]} 5. Nf3 {[%clk 0:04:40.2]} 5... h6
{[%clk 0:04:52.6]} 6. dxe5 {[%clk 0:04:37.2]} 6... dxe5 {[%clk 0:04:51.7]} 7.
Nxe5 {[%clk 0:04:30.6]} 7... Nxe5 {[%clk 0:04:46.4]} 8. Qxd8+ {[%clk 0:04:19.5]}
8... Kxd8 {[%clk 0:04:44.1]} 9. Bb3 {[%clk 0:04:19.1]} 9... Bb4 {[%clk
0:04:40.3]} 10. Bf4 {[%clk 0:04:17.4]} 10... Ng6 {[%clk 0:04:29.6]} 11. O-O-O+
{[%clk 0:04:07.8]} 11... Ke7 {[%clk 0:04:25.5]} 12. Bxc7 {[%clk 0:04:03.5]}
12... Bxc3 {[%clk 0:04:21.4]} 13. bxc3 {[%clk 0:04:01.2]} 13... Be6 {[%clk
0:04:17.2]} 14. Bd6+ {[%clk 0:03:57.8]} 14... Ke8 {[%clk 0:04:11.7]} 15. Ba4+
{[%clk 0:03:49.2]} 15... Bd7 {[%clk 0:04:10.7]} 16. Bxd7+ {[%clk 0:03:46.6]}
16... Nxd7 {[%clk 0:04:09.7]} 17. f4 {[%clk 0:03:44.3]} 17... Rc8 {[%clk
0:04:05.8]} 18. f5 {[%clk 0:03:42.6]} 18... Nge5 {[%clk 0:04:00.4]} 19. Rd5
{[%clk 0:03:36.3]} 19... f6 {[%clk 0:03:57.4]} 20. Rhd1 {[%clk 0:03:31.2]} 20...
Rxc3 {[%clk 0:03:53.8]} 21. Bxe5 {[%clk 0:03:25.8]} 21... Nxe5 {[%clk
0:03:45.4]} 22. Rd8+ {[%clk 0:03:23.8]} 22... Ke7 {[%clk 0:03:43.1]} 23. Rxh8
{[%clk 0:03:22.4]} 23... Nc4 {[%clk 0:03:35.8]} 24. Rdd8 {[%clk 0:03:12.4]}
24... Re3 {[%clk 0:03:30.9]} 25. Rhe8+ {[%clk 0:02:53.4]} 25... Kf7 {[%clk
0:03:29.2]} 26. Re6 {[%clk 0:02:37.4]} 26... Re1+ {[%clk 0:03:23.2]} 27. Rd1
{[%clk 0:02:37]} 27... Re2 {[%clk 0:03:22.1]} 28. c3 {[%clk 0:01:56.1]} 28...
Rxa2 {[%clk 0:03:18]} 29. Rd7+ {[%clk 0:01:52.6]} 29... Kf8 {[%clk 0:03:15.8]}
30. Rc7 {[%clk 0:01:43.9]} 30... Ne5 {[%clk 0:03:10.3]} 31. Rd6 {[%clk
0:01:38.5]} 31... Ke8 {[%clk 0:03:03.9]} 32. Rxg7 {[%clk 0:01:35.9]} 32... Ra1+
{[%clk 0:02:59.6]} 33. Kc2 {[%clk 0:01:33.1]} 33... Ra2+ {[%clk 0:02:58]} 34.
Kb3 {[%clk 0:01:30.9]} 34... Rf2 {[%clk 0:02:51.2]} 35. Rxf6 {[%clk 0:01:26.6]}
35... Nd3 {[%clk 0:02:41.2]} 36. Rxh6 {[%clk 0:01:21.3]} 36... b5 {[%clk
0:02:37.4]} 37. Rh8# {[%clk 0:01:19.3]} 1-0

[Event "Live Chess"]
[Site "Chess.com"]
[Date "2024.06.02"]
[Round "-"]
[White "Hoogleboogle"]
[Black "Crowded_House"]
[Result "1/2-1/2"]
[WhiteElo "1363"]
[BlackElo "1660"]
[TimeControl "300"]
[EndTime "1:31:30 PDT"]
[Termination "Game drawn - insufficient material"]

1. d4 {[%clk 0:04:55.6]} 1... e6 {[%clk 0:04:59.5]} 2. c4 {[%clk 0:04:54.6]}
2... d5 {[%clk 0:04:59.1]} 3. Nc3 {[%clk 0:04:51.7]} 3... c6 {[%clk 0:04:58.1]}
4. Bf4 {[%clk 0:04:48.2]} 4... Bd6 {[%clk 0:04:56]} 5. Bg3 {[%clk 0:04:45]} 5...
b6 {[%clk 0:04:51.3]} 6. Nf3 {[%clk 0:04:40]} 6... Bb7 {[%clk 0:04:45.4]} 7. e4
{[%clk 0:04:37.2]} 7... dxe4 {[%clk 0:04:43]} 8. Nxe4 {[%clk 0:04:35.5]} 8...
Bxg3 {[%clk 0:04:41.9]} 9. hxg3 {[%clk 0:04:33.4]} 9... c5 {[%clk 0:04:30.4]}
10. Neg5 {[%clk 0:04:07.7]} 10... h6 {[%clk 0:04:21]} 11. Nh3 {[%clk 0:04:05.7]}
11... cxd4 {[%clk 0:04:04.3]} 12. Nxd4 {[%clk 0:04:02.1]} 12... Nf6 {[%clk
0:03:55.8]} 13. Nf3 {[%clk 0:04:00.4]} 13... O-O {[%clk 0:03:53.4]} 14. Be2
{[%clk 0:03:55.5]} 14... Nc6 {[%clk 0:03:52.3]} 15. O-O {[%clk 0:03:53.9]} 15...
Qxd1 {[%clk 0:03:51.4]} 16. Raxd1 {[%clk 0:03:50.9]} 16... Rfd8 {[%clk
0:03:50.1]} 17. Rxd8+ {[%clk 0:03:47.5]} 17... Rxd8 {[%clk 0:03:48]} 18. Rd1
{[%clk 0:03:46.5]} 18... Rxd1+ {[%clk 0:03:46.8]} 19. Bxd1 {[%clk 0:03:45.1]}
19... Nb4 {[%clk 0:03:39.4]} 20. a3 {[%clk 0:03:42.7]} 20... Nd3 {[%clk
0:03:37.7]} 21. b4 {[%clk 0:03:36.6]} 21... Bxf3 {[%clk 0:03:28.3]} 22. gxf3
{[%clk 0:03:33.8]} 22... Nd7 {[%clk 0:03:20.2]} 23. Bc2 {[%clk 0:03:31.3]} 23...
N3e5 {[%clk 0:03:16.6]} 24. Kg2 {[%clk 0:03:22.4]} 24... Nxc4 {[%clk 0:03:15]}
25. Nf4 {[%clk 0:03:16.1]} 25... Nxa3 {[%clk 0:03:10.8]} 26. Ba4 {[%clk
0:03:13.8]} 26... Ne5 {[%clk 0:03:03.9]} 27. g4 {[%clk 0:03:05.3]} 27... Nac4
{[%clk 0:02:59.9]} 28. Bb5 {[%clk 0:02:57.6]} 28... a6 {[%clk 0:02:51.9]} 29.
Bxa6 {[%clk 0:02:54.9]} 29... Na3 {[%clk 0:02:42.2]} 30. b5 {[%clk 0:02:49.5]}
30... Nd7 {[%clk 0:02:33.1]} 31. Nd3 {[%clk 0:02:40.7]} 31... Nb8 {[%clk
0:02:26.2]} 32. Nb4 {[%clk 0:02:35.4]} 32... Nxa6 {[%clk 0:02:21.7]} 33. bxa6
{[%clk 0:02:33.7]} 33... Nb5 {[%clk 0:02:19]} 34. Nc6 {[%clk 0:02:32.4]} 34...
Kf8 {[%clk 0:02:12.6]} 35. a7 {[%clk 0:02:32.3]} 35... Nxa7 {[%clk 0:02:11.3]}
36. Nxa7 {[%clk 0:02:30.4]} 36... Ke7 {[%clk 0:02:09]} 37. Kg3 {[%clk
0:02:28.1]} 37... Kd7 {[%clk 0:02:03.9]} 38. Nb5 {[%clk 0:02:23.9]} 38... Kc6
{[%clk 0:02:02.4]} 39. Nd4+ {[%clk 0:02:21.5]} 39... Kc5 {[%clk 0:01:59.4]} 40.
Nb3+ {[%clk 0:02:18.6]} 40... Kc4 {[%clk 0:01:57]} 41. Nd2+ {[%clk 0:02:13.6]}
41... Kc3 {[%clk 0:01:53.6]} 42. Nb1+ {[%clk 0:02:10]} 42... Kc2 {[%clk
0:01:51]} 43. Na3+ {[%clk 0:02:08.7]} 43... Kb3 {[%clk 0:01:49.4]} 44. Nb5
{[%clk 0:02:07]} 44... Kb4 {[%clk 0:01:46.8]} 45. Nd6 {[%clk 0:02:04.7]} 45...
Kc5 {[%clk 0:01:38.7]} 46. Nxf7 {[%clk 0:02:03.2]} 46... b5 {[%clk 0:01:37.9]}
47. Ne5 {[%clk 0:02:02.2]} 47... b4 {[%clk 0:01:36.6]} 48. Nd3+ {[%clk
0:02:01.2]} 48... Kc4 {[%clk 0:01:35.1]} 49. Nxb4 {[%clk 0:01:59.8]} 49... Kxb4
{[%clk 0:01:34.9]} 50. Kf4 {[%clk 0:01:58.8]} 50... Kc5 {[%clk 0:01:27.9]} 51.
Ke5 {[%clk 0:01:58.2]} 51... Kc4 {[%clk 0:01:20.5]} 52. Kxe6 {[%clk 0:01:57.1]}
52... Kd3 {[%clk 0:01:20.1]} 53. f4 {[%clk 0:01:56.3]} 53... Ke4 {[%clk
0:01:14.1]} 54. f5 {[%clk 0:01:54.2]} 54... Kf4 {[%clk 0:01:12]} 55. f3 {[%clk
0:01:52.4]} 55... Kxf3 {[%clk 0:01:10]} 56. Kf7 {[%clk 0:01:51.4]} 56... Kf4
{[%clk 0:01:01.1]} 57. Kg6 {[%clk 0:01:47.1]} 57... Kxg4 {[%clk 0:00:58.2]} 58.
Kxg7 {[%clk 0:01:42.4]} 58... Kxf5 {[%clk 0:00:56.9]} 59. Kxh6 {[%clk
0:01:41.7]} 1/2-1/2

[Event "Live Chess"]
[Site "Chess.com"]
[Date "2024.06.02"]
[Round "-"]
[White "TheSmoulderingMaster"]
[Black "Queensandpawns"]
[Result "1-0"]
[WhiteElo "1753"]
[BlackElo "2266"]
[TimeControl "300"]
[EndTime "1:31:54 PDT"]
[Termination "TheSmoulderingMaster won by checkmate"]

1. e4 {[%clk 0:04:57.5]} 1... e5 {[%clk 0:04:59.9]} 2. Nf3 {[%clk 0:04:56.1]}
2... Nf6 {[%clk 0:04:59.8]} 3. Nxe5 {[%clk 0:04:54]} 3... Nc6 {[%clk 0:04:59.7]}
4. Nxc6 {[%clk 0:04:52.6]} 4... dxc6 {[%clk 0:04:59.6]} 5. Nc3 {[%clk
0:04:50.8]} 5... Bc5 {[%clk 0:04:59.2]} 6. Bc4 {[%clk 0:04:48]} 6... Bxf2+
{[%clk 0:04:58.3]} 7. Kxf2 {[%clk 0:04:46.3]} 7... Qd4+ {[%clk 0:04:58.1]} 8.
Kf1 {[%clk 0:04:42.7]} 8... Qxc4+ {[%clk 0:04:56]} 9. d3 {[%clk 0:04:40.9]} 9...
Qd4 {[%clk 0:04:54.2]} 10. Qe2 {[%clk 0:04:35.4]} 10... Be6 {[%clk 0:04:50.1]}
11. Be3 {[%clk 0:04:31.9]} 11... Qd7 {[%clk 0:04:48.9]} 12. h3 {[%clk
0:04:22.8]} 12... O-O-O {[%clk 0:04:48.8]} 13. Kf2 {[%clk 0:04:21.8]} 13... Rhe8
{[%clk 0:04:44.1]} 14. Rhf1 {[%clk 0:04:17.6]} 14... Ng8 {[%clk 0:04:36.4]} 15.
a4 {[%clk 0:04:11.6]} 15... Ne7 {[%clk 0:04:36.3]} 16. a5 {[%clk 0:04:10.2]}
16... f5 {[%clk 0:04:33.8]} 17. Bxa7 {[%clk 0:04:04.8]} 17... fxe4 {[%clk
0:04:30.4]} 18. Nxe4 {[%clk 0:04:03.1]} 18... Nd5 {[%clk 0:04:05.4]} 19. a6
{[%clk 0:03:57.9]} 19... b6 {[%clk 0:03:57.6]} 20. c4 {[%clk 0:03:48.5]} 20...
Nf4 {[%clk 0:03:55.3]} 21. Qe3 {[%clk 0:03:39]} 21... Nxd3+ {[%clk 0:03:54.4]}
22. Kg1 {[%clk 0:03:36.1]} 22... Bf5 {[%clk 0:03:44.7]} 23. Rad1 {[%clk
0:03:15.8]} 23... Bxe4 {[%clk 0:03:43.1]} 24. Bxb6 {[%clk 0:03:11.5]} 24... cxb6
{[%clk 0:03:41.5]} 25. Qxb6 {[%clk 0:03:09.4]} 25... Qc7 {[%clk 0:03:40.8]} 26.
Qb3 {[%clk 0:02:53.9]} 26... Qa7+ {[%clk 0:03:34.9]} 27. Kh1 {[%clk 0:02:51.8]}
27... Nc5 {[%clk 0:03:30.5]} 28. Qg3 {[%clk 0:02:44.8]} 28... Qc7 {[%clk
0:03:27.8]} 29. Qg4+ {[%clk 0:02:38.6]} 29... Rd7 {[%clk 0:03:22.7]} 30. Ra1
{[%clk 0:02:35.3]} 30... Kb8 {[%clk 0:03:21.4]} 31. a7+ {[%clk 0:02:32.4]} 31...
Ka8 {[%clk 0:03:21]} 32. Qh5 {[%clk 0:02:12.9]} 32... Qg3 {[%clk 0:03:14.9]} 33.
Qxe8+ {[%clk 0:02:07.6]} 33... Kb7 {[%clk 0:03:06.7]} 34. a8=Q+ {[%clk
0:02:05.7]} 34... Kb6 {[%clk 0:03:06.1]} 35. Qa5+ {[%clk 0:01:51.9]} 35... Kb7
{[%clk 0:03:01.2]} 36. Qea8# {[%clk 0:01:48.4]} 1-0